bitfinex/quotes_ETHUSD_20250903
["timestamp","ask_amount","ask_price","bid_price","bid_amount"]
[1756920342217,0.1112,4481.2,4481.1,0.7186]
[1756920342458,0.1112,4481.2,4481.1,0.2875]
[1756920342759,0.4077,4481.2,4480.7,6.0087577]
[1756920343354,0.4077,4481.2,4480.7,3.777]
[1756920343568,0.4077,4481.2,4480.6,0.1112]
[1756920343752,0.4077,4481.2,4480.5,0.4311]
[1756920343753,2.23167984,4481.0,4480.3,0.001]
[1756920344052,0.1112,4480.7,4480.3,0.001]
[1756920344254,0.1112,4480.7,4480.5,2.23188079]
[1756920344420,0.1112,4480.7,4480.6,0.7484]
[1756920344632,0.1112,4480.7,4480.6,1.1795]
[1756920344838,0.1112,4480.7,4480.6,3.41134394]
[1756920345039,0.1112,4480.7,4480.6,1.1795]
[1756920345247,0.1112,4480.7,4480.6,0.2875]
[1756920345439,0.1112,4480.7,4480.3,2.23295332]
[1756920345440,0.1112,4480.7,4480.4,2.23194265]
[1756920345656,0.1112,4480.7,4480.5,2.23188497]
[1756920345984,0.1112,4480.7,4480.3,2.2329883]
[1756920346267,2.52844357,4480.4,4480.3,0.001]
[1756920346485,2.63964357,4480.4,4480.3,0.001]
[1756920346634,0.4077,4480.4,4480.3,0.001]
[1756920346944,0.1112,4480.4,4480.3,0.7196]
[1756920347474,0.1112,4480.7,4480.3,5.42426848]
[1756920347640,0.1112,4481.0,4480.7,2.23175316]
[1756920347836,0.1112,4481.0,4480.9,0.2875]
[1756920348346,0.1112,4481.0,4480.9,0.7186]
[1756920348741,0.1112,4481.0,4480.9,0.2875]
[1756920349778,0.1112,4481.0,4480.6,3.777]
[1756920350281,0.1112,4481.0,4480.6,4.2081]
[1756920350651,0.1112,4481.0,4480.9,0.2875]
[1756920351778,0.1112,4481.0,4480.9,0.7186]
[1756920352671,0.1112,4481.0,4480.9,0.2875]
[1756920353038,0.1112,4481.0,4480.9,0.7186]
[1756920353440,0.1112,4481.0,4480.9,0.2875]
[1756920354841,0.1132,4481.0,4480.9,0.2875]
[1756920355141,0.1132,4481.0,4480.7,3.777]
[1756920355344,0.1132,4481.0,4480.9,0.2875]
[1756920356654,0.1132,4481.0,4480.7,3.777]
[1756920357367,0.1132,4481.0,4480.8,3.776]
[1756920357784,0.1132,4481.0,4480.9,0.2875]
[1756920358100,0.1132,4481.0,4480.9,4.08393697]
[1756920358252,0.002,4481.0,4480.9,4.19513697]
[1756920358456,0.002,4481.0,4480.9,1.96344245]
[1756920358657,0.002,4481.0,4480.9,7.97113697]
[1756920358855,0.002,4481.0,4480.9,3.09129452]
[1756920359060,0.002,4481.0,4480.9,6.40639452]
[1756920359285,0.002,4481.0,4480.9,4.1747]
[1756920359693,0.002,4481.0,4480.9,0.3987]
[1756920360004,0.002,4481.0,4480.9,6.40639452]
[1756920360394,0.002,4481.0,4480.9,6.88929452]
[1756920360701,0.002,4481.0,4480.9,8.73831183]
[1756920361673,0.002,4481.0,4480.9,9.53031183]
[1756920361988,0.002,4481.0,4480.9,12.53031183]
[1756920362395,0.002,4481.0,4480.9,8.75431183]
[1756920362774,0.002,4481.0,4480.9,7.96231183]
[1756920362969,0.002,4481.0,4480.9,11.73831183]
[1756920364678,0.002,4481.0,4480.9,12.53031183]
[1756920365413,0.002,4481.0,4480.9,7.96231183]
[1756920365615,0.002,4481.0,4480.9,11.73831183]
[1756920365821,0.002,4481.0,4480.9,10.35799452]
[1756920366391,0.002,4481.0,4480.9,6.09909452]
[1756920366684,0.002,4481.0,4480.9,6.58199452]
[1756920366883,0.002,4481.0,4480.9,10.35799452]
[1756920367479,0.002,4481.0,4480.9,11.61707183]
[1756920368796,0.002,4481.0,4480.9,12.40907183]
[1756920373381,0.002,4481.0,4480.9,8.63307183]
[1756920373592,0.002,4481.0,4480.9,12.40807183]
[1756920375783,0.002,4481.0,4480.9,16.65807183]
[1756920376523,0.002,4481.0,4480.9,12.88307183]
[1756920376692,0.002,4481.0,4480.9,16.65807183]
[1756920377022,1e-08,4481.8,4481.7,3.02329615]
[1756920377229,1e-08,4481.8,4481.7,15.89480911]
[1756920377515,1e-08,4481.8,4481.7,17.13089615]
[1756920378094,1e-08,4481.8,4481.7,17.22029411]
[1756920378291,1e-08,4481.8,4481.7,17.12989615]
[1756920378504,1e-08,4481.8,4481.7,18.11442233]
[1756920378985,1e-08,4481.8,4481.7,14.34042233]
[1756920379185,1e-08,4481.8,4481.7,18.11442233]
[1756920380206,1e-08,4481.8,4481.7,19.06602233]
[1756920380412,1e-08,4481.8,4481.7,15.29202233]
[1756920380588,1e-08,4481.8,4481.7,19.06602233]
[1756920381420,1e-08,4481.8,4481.7,14.81802233]
[1756920382391,1e-08,4481.8,4481.7,11.04402233]
[1756920382594,1e-08,4481.8,4481.7,14.81802233]
[1756920386027,1e-08,4481.8,4481.7,14.33512233]
[1756920387108,1e-08,4481.8,4481.7,19.06602233]
[1756920388029,0.002,4482.6,4482.5,3.02289793]
[1756920388229,0.002,4482.6,4482.5,9.79589793]
[1756920388535,0.002,4482.6,4482.5,10.57139793]
[1756920388827,0.002,4482.6,4482.5,10.68259793]
[1756920389018,0.002,4482.6,4482.5,11.16549793]
[1756920389219,0.002,4482.6,4482.5,13.04114444]
[1756920390151,0.002,4483.3,4482.9,3.02269887]
[1756920390347,0.002,4483.3,4482.9,11.64420585]
[1756920390527,0.002,4483.3,4482.9,12.86209887]
[1756920390728,0.2939,4483.0,4482.9,11.62189887]
[1756920391044,0.2939,4483.0,4482.9,13.17843751]
[1756920392261,0.002,4483.0,4482.9,13.48683751]
[1756920392618,0.002,4483.0,4482.9,9.40543751]
[1756920392851,0.2939,4483.0,4482.9,13.17843751]
[1756920393252,0.002,4483.0,4482.9,13.48683751]
[1756920394065,0.002,4483.0,4482.9,13.17843751]
[1756920394354,0.2939,4483.0,4482.9,13.17743751]
[1756920395347,0.002,4483.0,4482.9,13.48583751]
[1756920395534,0.002,4483.0,4482.9,13.17743751]
[1756920395845,0.002,4483.0,4482.9,9.71383751]
[1756920396149,0.2939,4483.0,4482.9,13.17743751]
[1756920396447,1.1855,4483.0,4482.9,13.17743751]
[1756920396747,0.002,4483.0,4482.9,13.31456552]
[1756920397955,0.002,4483.0,4482.9,14.24636552]
[1756920398250,1e-08,4483.1,4483.0,3.02264911]
[1756920398452,1e-08,4483.1,4483.0,4.54105366]
[1756920398620,1e-08,4483.1,4483.0,4.84945366]
[1756920398956,1e-08,4483.1,4483.0,4.91651916]
[1756920399842,1e-08,4483.1,4483.0,9.16451916]
[1756920400657,1e-08,4483.1,4483.0,12.93651916]
[1756920400853,1e-08,4483.1,4483.0,12.00471916]
[1756920401053,0.29190001,4483.1,4483.0,7.92431916]
[1756920401228,0.72090001,4483.1,4483.0,10.90431916]
[1756920401430,1.18350001,4483.1,4483.0,4.248]
[1756920401619,1.18350001,4483.1,4483.0,3.772]
[1756920401822,1.18350001,4483.1,4483.0,3.771]
[1756920402730,1.18350001,4483.1,4482.7,0.1112]
[1756920402936,1.18350001,4483.1,4482.3,1.715]
[1756920402937,2.23070388,4482.9,4482.3,1.8262]
[1756920403136,0.2919,4482.4,4482.3,1.715]
[1756920403335,1.1835,4482.4,4482.3,1.715]
[1756920403546,1.1835,4482.4,4482.3,5.486]
[1756920404151,1.1835,4482.4,4482.3,1.715]
[1756920404352,1.1835,4482.4,4482.3,5.486]
[1756920405457,1.1835,4482.4,4482.3,1.715]
[1756920405674,1.1835,4482.4,4482.3,5.487]
[1756920409572,1.1835,4482.4,4482.3,1.715]
[1756920409773,1.53605861,4482.4,4482.3,5.488]
[1756920409978,3.4144477,4482.4,4482.3,0.001]
[1756920412062,1.1835,4482.4,4482.3,0.001]
[1756920412380,0.2919,4482.4,4482.3,0.001]
[1756920412753,1e-08,4483.1,4482.3,1.2412]
[1756920412954,1e-08,4483.1,4483.0,2.23064911]
[1756920413286,1e-08,4483.1,4483.0,6.11384911]
[1756920413782,0.29190001,4483.1,4483.0,6.11384911]
[1756920413985,1e-08,4483.1,4483.0,6.11384911]
[1756920414870,1e-08,4483.1,4483.0,7.42820874]
[1756920415070,1e-08,4483.1,4483.0,8.36000874]
[1756920415470,1e-08,4483.1,4483.0,9.15200874]
[1756920415790,1e-08,4483.1,4483.0,12.15200874]
[1756920417608,1e-08,4483.1,4483.0,11.22020874]
[1756920417805,1e-08,4483.1,4483.0,7.11980874]
[1756920418606,0.29190001,4483.1,4483.0,7.11880874]
[1756920418899,1e-08,4483.1,4483.0,7.11880874]
[1756920419209,1e-08,4483.1,4483.0,7.42720874]
[1756920420474,1e-08,4483.1,4483.0,12.11400874]
[1756920420880,1e-08,4483.1,4483.0,8.34300874]
[1756920421104,1e-08,4483.1,4483.0,12.11400874]
[1756920422901,1e-08,4483.1,4483.0,12.20337953]
[1756920423080,1e-08,4483.1,4483.0,8.43237953]
[1756920423405,1e-08,4483.1,4483.0,11.75167953]
[1756920424282,1e-08,4483.1,4483.0,11.30857953]
[1756920426421,1e-08,4483.1,4483.0,12.20337953]
[1756920427102,1e-08,4483.1,4483.0,11.30857953]
[1756920427831,1e-08,4483.1,4483.0,11.75167953]
[1756920428991,1e-08,4483.1,4483.0,8.66230874]
[1756920429911,1e-08,4483.1,4483.0,9.11400874]
[1756920430227,1e-08,4483.1,4483.0,22.58787877]
[1756920432191,0.002,4483.5,4483.4,6.47445009]
[1756920432420,0.002,4483.5,4483.4,10.9710951]
[1756920432620,1e-08,4483.8,4483.5,0.792]
[1756920432819,1e-08,4483.8,4483.7,16.49617089]
[1756920433026,1e-08,4483.8,4483.7,27.92987088]
[1756920433196,1e-08,4483.8,4483.7,15.35080085]
[1756920433396,1e-08,4483.8,4483.7,17.40462758]
[1756920434089,1e-08,4483.8,4483.7,17.49398221]
[1756920434404,1e-08,4483.8,4483.7,30.96785224]
[1756920434785,1e-08,4483.8,4483.7,27.19785224]
[1756920434990,1e-08,4483.8,4483.7,30.96785224]
[1756920437801,1e-08,4483.8,4483.7,33.31685224]
[1756920438120,1e-08,4483.8,4483.7,30.96785224]
[1756920439294,0.4881,4485.6,4484.7,3.02180355]
[1756920439494,0.4881,4485.6,4484.7,13.40546942]
[1756920439689,0.4881,4485.6,4484.7,13.69167139]
[1756920439921,0.3411,4484.8,4484.7,9.31027139]
[1756920440124,1.2937,4484.8,4484.7,12.59117139]
[1756920440321,1.2937,4484.8,4484.7,8.82217139]
[1756920440524,1.2937,4484.8,4484.7,12.06600353]
[1756920441731,1.2937,4484.8,4484.7,8.29700353]
[1756920441931,1.2937,4484.8,4484.7,12.06600353]
[1756920442616,0.8292,4484.8,4484.7,12.06600353]
[1756920443029,0.3411,4484.8,4484.7,8.29700353]
[1756920443203,0.8056,4484.8,4484.7,13.65449139]
[1756920443604,1.2937,4484.8,4484.7,13.65449139]
[1756920444221,1.2937,4484.8,4484.7,9.41249141]
[1756920445316,0.3411,4484.8,4484.7,9.41249141]
[1756920445919,0.3431,4484.8,4484.7,5.64349141]
[1756920446121,0.3431,4484.8,4484.7,9.41249141]
[1756920447334,1.2957,4484.8,4484.7,9.41249141]
[1756920447529,1.2957,4484.8,4484.7,7.82400355]
[1756920448841,0.3431,4484.8,4484.7,7.82400355]
[1756920449040,0.8076,4484.8,4484.7,7.82400355]
[1756920449238,1.2957,4484.8,4484.7,7.82400355]
[1756920449417,1.2957,4484.8,4484.7,4.05500355]
[1756920449617,1.2957,4484.8,4484.7,8.29700353]
[1756920449821,1.42527,4484.8,4484.7,5.95599998]
[1756920450205,1.42527,4484.8,4484.7,9.72399998]
[1756920451729,0.027,4484.8,4484.7,8.12500355]
[1756920451935,0.027,4484.8,4484.7,7.82300355]
[1756920452232,0.027,4484.8,4484.7,8.12500355]
[1756920452437,0.027,4484.8,4484.7,8.91700355]
[1756920452640,0.027,4484.8,4484.7,6.7821939]
[1756920452946,0.027,4484.8,4484.7,10.5501939]
[1756920453857,0.027,4484.8,4484.7,6.7821939]
[1756920454153,0.027,4484.8,4484.7,6.4801939]
[1756920454318,0.7789,4484.8,4484.7,4.05500355]
[1756920454510,1.2123,4484.8,4484.7,7.82300355]
[1756920454938,1.2123,4484.8,4484.7,4.05500355]
[1756920455139,1.2123,4484.8,4484.7,7.82300355]
[1756920456015,0.3253,4484.8,4484.7,7.82300355]
[1756920456221,0.3253,4484.8,4484.7,9.25249115]
[1756920457131,0.3253,4484.8,4484.7,7.82300355]
[1756920457327,0.3253,4484.8,4484.7,4.05500355]
[1756920457534,1.2123,4484.8,4484.7,7.82300355]
[1756920457733,0.7789,4484.8,4484.7,7.82300355]
[1756920457933,0.3253,4484.8,4484.7,7.82300355]
[1756920459329,1.2123,4484.8,4484.7,4.05500355]
[1756920459533,1.2123,4484.8,4484.7,7.82300355]
[1756920459725,1.2123,4484.8,4484.7,4.05500355]
[1756920459926,0.3253,4484.8,4484.7,7.82300355]
[1756920460121,0.027,4484.8,4484.7,9.55449115]
[1756920460328,0.027,4484.8,4484.7,10.02649115]
[1756920461161,0.027,4484.8,4484.7,9.55449115]
[1756920462049,0.027,4484.8,4484.7,13.79649113]
[1756920462248,0.3253,4484.8,4484.7,9.72649113]
[1756920462558,0.3253,4484.8,4484.7,12.06500353]
[1756920462858,0.027,4484.8,4484.7,12.06500353]
[1756920463727,0.027,4484.8,4484.7,12.36700353]
[1756920464863,0.027,4484.8,4484.7,8.59900353]
[1756920465069,0.3253,4484.8,4484.7,12.06400353]
[1756920465437,0.027,4484.8,4484.7,12.06400353]
[1756920465867,0.3253,4484.8,4484.7,12.06400353]
[1756920466266,0.027,4484.8,4484.7,12.36600353]
[1756920466668,0.027,4484.8,4484.7,12.06400353]
[1756920467241,0.3253,4484.8,4484.7,12.06400353]
[1756920467570,1.2123,4484.8,4484.7,12.06400353]
[1756920468669,0.027,4484.8,4484.7,12.06400353]
[1756920469277,0.3253,4484.8,4484.7,12.06400353]
[1756920470967,0.7587,4484.8,4484.7,12.06400353]
[1756920471688,1.2123,4484.8,4484.7,12.06400353]
[1756920472187,0.7587,4484.8,4484.7,12.06400353]
[1756920472400,0.3253,4484.8,4484.7,12.06400353]
[1756920472592,0.7789,4484.8,4484.7,12.06400353]
[1756920472887,1.2123,4484.8,4484.7,12.06400353]
[1756920474207,1.2123,4484.8,4484.7,5.95599998]
[1756920474492,1.34465,4484.8,4484.7,5.481]
[1756920475399,1.2123,4484.8,4484.7,5.481]
[1756920475566,0.3253,4484.8,4484.7,7.71080355]
[1756920475757,0.027,4484.8,4484.7,8.01280355]
[1756920476110,0.027,4484.8,4484.7,7.71080355]
[1756920476260,0.027,4484.8,4484.7,8.01280355]
[1756920476968,0.027,4484.8,4484.7,4.24580355]
[1756920477209,0.027,4484.8,4484.7,8.01280355]
[1756920479800,0.027,4484.8,4484.7,7.71080355]
[1756920480315,0.3182,4484.8,4484.7,1.714]
[1756920480479,1.2425,4484.8,4484.7,5.48]
[1756920480685,1.2425,4484.8,4484.7,1.714]
[1756920480887,1.37787,4484.8,4484.7,5.48]
[1756920481617,7.53788042,4484.8,4484.7,5.48]
[1756920481819,7.40251042,4484.8,4484.7,5.48]
[1756920483212,7.40251042,4484.8,4484.7,1.714]
[1756920483414,7.40251042,4484.8,4484.7,5.48]
[1756920484190,7.40251042,4484.8,4484.7,3.766]
[1756920487341,6.47821042,4484.8,4484.7,3.766]
[1756920488617,7.40251042,4484.8,4484.7,3.766]
[1756920488931,6.47821042,4484.8,4484.7,3.766]
[1756920491167,6.47821042,4484.8,4484.7,5.99580355]
[1756920491311,6.47821042,4484.8,4484.7,3.766]
[1756920493253,2.2298389,4484.7,4484.4,4.24199998]
[1756920493428,3.1541389,4484.7,4484.5,3.766]
[1756920493633,0.9243,4484.6,4484.5,3.766]
[1756920493823,1.3267,4484.6,4484.5,3.766]
[1756920494019,1.3267,4484.6,4484.4,4.24199998]
[1756920494247,0.4024,4484.6,4484.5,3.766]
[1756920494853,1.3267,4484.6,4484.5,3.766]
[1756920496234,1.3267,4484.6,4484.5,3.765]
[1756920496460,1.3267,4484.6,4484.4,4.24199998]
[1756920496661,2.63225524,4484.6,4484.5,3.765]
[1756920496959,0.4024,4484.6,4484.5,3.765]
[1756920497158,1.3267,4484.6,4484.5,3.765]
[1756920497654,1.3267,4484.6,4484.2,2.23003776]
[1756920497854,1.3267,4484.6,4484.3,3.765]
[1756920499962,0.027,4484.8,4484.5,0.2927]
[1756920500269,0.1382,4484.8,4484.6,3.765]
[1756920500565,0.1382,4484.8,4484.5,0.2927]
[1756920500767,0.4591,4484.7,4484.2,0.1112]
[1756920501068,8.38996727,4484.4,4484.0,1.715]
[1756920501243,8.38996727,4484.4,4484.1,3.765]
[1756920501569,8.38996727,4484.4,4483.4,2.23044201]
[1756920501570,2.23015165,4484.0,4483.3,3.765]
[1756920501860,0.2912,4484.2,4483.3,3.765]
[1756920501861,6.27121042,4483.6,4483.3,3.765]
[1756920502061,6.56241042,4483.6,4483.5,3.766]
[1756920503062,7.02761042,4483.6,4483.5,3.766]
[1756920503263,9.25796103,4483.6,4483.5,3.766]
[1756920503441,10.91178866,4483.6,4483.5,0.001]
[1756920503643,13.91178866,4483.6,4483.5,0.001]
[1756920504051,13.44658866,4483.6,4483.5,0.001]
[1756920504274,13.91178866,4483.6,4483.5,0.001]
[1756920505260,11.68143805,4483.6,4483.5,0.001]
[1756920506092,9.27121042,4483.6,4483.5,0.2937]
[1756920506375,3.0,4483.6,4483.5,2.98980035]
[1756920506986,6.16001042,4484.4,4483.9,2.23016466]
[1756920507286,0.1112,4484.2,4484.0,6.46080395]
[1756920507438,0.1112,4484.2,4484.0,6.94130395]
[1756920507645,0.1112,4484.2,4484.1,0.2927]
[1756920507869,0.1112,4484.2,4484.1,2.52280191]
[1756920508145,0.1112,4484.2,4484.1,0.7584]
[1756920508560,0.1112,4484.2,4484.1,3.765]
[1756920508771,0.1112,4484.2,4484.1,4.0577]
[1756920508976,0.1112,4484.2,4484.1,3.765]
[1756920509279,0.4024,4484.2,4484.1,3.765]
[1756920509575,0.4024,4484.2,4483.9,6.47219081]
[1756920509775,0.1112,4484.2,4484.1,4.0577]
[1756920510379,0.1112,4484.2,4484.1,12.74766059]
[1756920510779,0.027,4484.8,4484.3,2.23000084]
[1756920510950,0.027,4484.8,4484.4,5.99493487]
[1756920511146,0.027,4484.8,4484.5,3.765]
[1756920511579,0.2939,4484.6,4484.2,4.24199998]
[1756920511782,0.2939,4484.6,4484.3,3.765]
[1756920512150,6.16001042,4484.7,4484.3,3.765]
[1756920512450,6.16001042,4484.7,4484.4,2.22994714]
[1756920512769,6.16001042,4484.7,4484.3,5.99498912]
[1756920513478,6.16001042,4484.7,4484.3,5.99498811]
[1756920514050,6.16001042,4484.7,4484.4,3.765]
[1756920514946,6.16001042,4484.7,4484.3,2.22998811]
[1756920515150,6.16001042,4484.7,4484.5,3.765]
[1756920515375,6.16001042,4484.7,4484.6,0.305]
[1756920515758,6.16201042,4484.7,4484.6,0.305]
[1756920516951,6.16201042,4484.7,4484.5,3.765]
[1756920516952,6.45591042,4484.7,4484.5,3.765]
[1756920517154,7.80188802,4484.7,4484.0,0.001]
[1756920517456,0.1112,4484.6,4484.1,5.99409534]
[1756920517781,0.1112,4484.6,4484.2,2.23004533]
[1756920519080,0.1112,4484.6,4484.2,2.13004533]
[1756920519283,0.1112,4484.6,4484.3,2.22999819]
[1756920519486,0.1112,4484.6,4484.5,0.305]
[1756920521155,0.1112,4484.6,4484.4,3.764]
[1756920521485,5.13373482,4484.5,4484.4,3.764]
[1756920521654,5.13373482,4484.5,4484.4,4.069]
[1756920523354,5.13373482,4484.5,4484.4,6.29895272]
[1756920523557,5.13373482,4484.5,4484.4,4.069]
[1756920523782,5.13373482,4484.5,4484.4,3.764]
[1756920524165,5.42763482,4484.5,4484.1,6.47210185]
[1756920524400,5.42763482,4484.5,4484.1,4.24199998]
[1756920524401,5.13373482,4484.2,4484.1,4.24199998]
[1756920524556,6.47353482,4484.2,4484.1,8.00599998]
[1756920524757,9.47353482,4484.2,4484.0,0.001]
[1756920524962,6.16480191,4484.1,4484.0,0.001]
[1756920525408,6.45870191,4484.1,4484.0,0.001]
[1756920525711,4.76976426,4484.1,4484.0,0.306]
[1756920525857,0.002,4484.7,4484.0,1.2034]
[1756920526059,0.002,4484.7,4484.6,2.22985327]
[1756920526261,0.002,4484.7,4484.6,5.99285327]
[1756920526511,0.002,4484.7,4484.6,6.74235327]
[1756920527078,5.13573482,4484.7,4484.6,4.068]
[1756920527491,0.002,4484.7,4484.6,4.068]
[1756920529991,0.002,4484.7,4484.6,6.29785327]
[1756920530190,0.002,4484.7,4484.6,7.19525327]
[1756920530833,0.002,4484.7,4484.6,6.74235327]
[1756920531135,0.002,4484.7,4484.6,4.5125]
[1756920531630,0.002,4484.7,4484.6,6.74235327]
[1756920534436,0.002,4484.7,4484.6,0.305]
[1756920534631,0.2959,4484.7,4484.6,3.763]
[1756920534837,0.002,4484.7,4484.6,3.763]
[1756920535204,0.002,4484.7,4484.6,6.29785327]
[1756920535893,0.002,4484.7,4484.6,6.74235327]
[1756920536098,0.002,4484.7,4484.6,6.29785327]
[1756920536643,0.002,4484.7,4484.6,6.74235327]
[1756920537944,0.002,4484.7,4484.6,7.19525327]
[1756920538100,0.002,4484.7,4484.6,6.29785327]
[1756920538815,0.002,4484.7,4484.6,6.74235327]
[1756920540263,0.002,4484.7,4484.6,6.29785327]
[1756920542676,0.002,4484.7,4484.6,7.20915327]
[1756920542854,0.002,4484.7,4484.6,9.18092378]
[1756920551477,0.002,4484.7,4484.6,9.17892378]
[1756920551681,0.002,4484.7,4484.6,5.41792378]
[1756920551976,0.002,4484.7,4484.6,9.17892378]
[1756920552583,0.002,4484.7,4484.6,13.42092376]
[1756920554066,0.002,4484.7,4484.6,9.17892378]
[1756920555101,0.002,4484.7,4484.6,4.50662378]
[1756920555284,0.002,4484.7,4484.6,7.96162378]
[1756920555482,0.002,4484.7,4484.6,8.27602378]
[1756920556569,0.002,4484.7,4484.6,4.20162378]
[1756920556792,0.002,4484.7,4484.6,8.27602378]
[1756920557014,0.2977,4484.7,4484.6,4.20162378]
[1756920557301,0.002,4484.7,4484.6,7.96162378]
[1756920557668,1.2304,4484.7,4484.6,2.34105327]
[1756920557866,1.2304,4484.7,4484.6,6.10105327]
[1756920557867,0.2977,4484.7,4484.6,6.10105327]
[1756920558070,0.002,4484.7,4484.6,6.10105327]
[1756920560066,0.2977,4484.7,4484.6,6.10105327]
[1756920561075,0.2977,4484.7,4484.6,2.34105327]
[1756920561394,1.2304,4484.7,4484.6,6.10105327]
[1756920562179,0.7581,4484.7,4484.6,2.34105327]
[1756920562377,0.2977,4484.7,4484.6,6.10105327]
[1756920563262,0.002,4484.7,4484.6,6.10105327]
[1756920563817,0.002,4484.7,4484.6,7.41995378]
[1756920564111,0.002,4484.7,4484.6,9.01205378]
[1756920564305,0.002,4484.7,4484.6,9.12325378]
[1756920564793,0.002,4484.7,4484.6,8.21195378]
[1756920564986,0.002,4484.7,4484.6,4.45195378]
[1756920565183,0.002,4484.7,4484.6,7.10455378]
[1756920565500,0.002,4484.7,4484.6,7.41895378]
[1756920565897,0.002,4484.7,4484.6,11.66095376]
[1756920566881,0.2977,4484.7,4484.6,7.58755376]
[1756920567086,0.77,4484.7,4484.6,10.34205325]
[1756920567391,0.002,4484.7,4484.6,10.34205325]
[1756920567605,0.002,4484.7,4484.6,10.65645325]
[1756920570577,0.002,4484.7,4484.6,10.34205325]
[1756920570972,0.3178,4484.7,4484.6,10.34205325]
[1756920573577,0.002,4484.7,4484.6,10.63915325]
[1756920577304,0.002,4484.7,4484.6,12.66186376]
[1756920577900,0.002,4484.7,4484.6,12.18976376]
[1756920578283,0.3178,4484.7,4484.6,11.89166376]
[1756920578477,0.002,4484.7,4484.6,10.34105325]
[1756920578978,0.002,4484.7,4484.6,10.63815325]
[1756920579612,0.002,4484.7,4484.6,11.11025325]
[1756920579977,0.002,4484.7,4484.6,10.63815325]
[1756920580698,0.7776,4484.7,4484.6,6.58305325]
[1756920580903,1.2172,4484.7,4484.6,10.34105325]
[1756920581087,1.2172,4484.7,4484.6,6.58305325]
[1756920581424,1.2172,4484.7,4484.6,10.34105325]
[1756920582909,0.002,4484.7,4484.6,12.24195325]
[1756920583213,0.002,4484.7,4484.6,13.86054365]
[1756920583611,0.002,4484.7,4484.6,14.53067788]
[1756920584279,0.002,4484.7,4484.6,14.07977788]
[1756920584915,0.002,4484.7,4484.6,14.53067788]
[1756920588078,0.002,4484.7,4484.6,14.52967788]
[1756920589521,0.027,4484.8,4484.7,7.26180353]
[1756920589684,0.027,4484.8,4484.7,10.4527115]
[1756920589884,0.027,4484.8,4484.7,10.7498115]
[1756920590105,0.027,4484.8,4484.7,10.83915714]
[1756920592121,0.027,4484.8,4484.7,14.59615714]
[1756920592983,0.027,4484.8,4484.7,14.70735714]
[1756920593999,0.027,4484.8,4484.7,14.25645714]
[1756920594185,0.027,4484.8,4484.7,13.78435714]
[1756920595285,1e-08,4484.8,4484.7,14.70735714]
[1756920595489,0.002,4485.2,4485.1,3.02160469]
[1756920595815,0.002,4485.2,4485.1,7.32502866]
[1756920596018,0.002,4485.2,4485.1,8.05073262]
[1756920596222,0.002,4485.2,4485.1,8.61216629]
[1756920596831,0.002,4485.2,4485.1,8.72336629]
[1756920598635,0.002,4485.2,4485.1,12.96336627]
[1756920599607,0.3178,4485.2,4485.1,11.74326627]
[1756920600242,0.3178,4485.2,4485.1,12.03496627]
[1756920600243,0.002,4485.2,4485.1,12.03496627]
[1756920600744,0.002,4485.2,4485.1,12.93686627]
[1756920601442,0.002,4485.2,4485.1,12.03496627]
[1756920602305,0.002,4485.2,4485.1,8.27896627]
[1756920602644,0.002,4485.2,4485.1,11.74226627]
[1756920604043,0.2966,4485.2,4485.1,11.74226627]
[1756920604844,0.002,4485.2,4485.1,12.46516627]
[1756920605342,0.002,4485.2,4485.1,12.03396627]
[1756920605544,0.002,4485.2,4485.1,9.18086627]
[1756920605725,0.002,4485.2,4485.1,12.93586627]
[1756920606840,0.002,4485.6,4485.5,3.02140586]
[1756920607047,0.002,4485.6,4485.5,12.83760584]
[1756920607338,0.2966,4485.6,4485.5,12.83760584]
[1756920607545,0.7254,4485.6,4485.5,13.50228907]
[1756920608246,0.2966,4485.6,4485.5,13.50228907]
[1756920608418,0.002,4485.6,4485.5,13.50228907]
[1756920608614,0.2966,4485.6,4485.5,13.50228907]
[1756920608852,0.2966,4485.6,4485.5,9.74728907]
[1756920609019,0.2966,4485.6,4485.5,13.50228907]
[1756920609224,0.7254,4485.6,4485.5,13.50228907]
[1756920609427,1.1818,4485.6,4485.5,6.09560586]
[1756920611364,1.1818,4485.6,4485.5,0.1112]
[1756920611654,1.1818,4485.6,4485.5,3.755]
[1756920611655,3.41116055,4485.6,4485.5,3.755]
[1756920611854,3.41116055,4485.6,4485.1,1.714]
[1756920611855,2.22941689,4485.5,4485.4,3.755]
[1756920612078,4.08546451,4485.5,4485.4,3.755]
[1756920612209,2.26184762,4485.5,4485.4,3.755]
[1756920613065,0.8622,4485.5,4485.4,5.98445556]
[1756920613231,0.8622,4485.5,4485.4,6.09565556]
[1756920613232,1.1798,4485.5,4485.4,6.09565556]
[1756920613412,0.7234,4485.5,4485.4,6.09565556]
[1756920613616,1.1798,4485.5,4485.4,6.09565556]
[1756920614621,0.2946,4485.5,4485.4,6.09565556]
[1756920615333,0.002,4485.6,4485.5,3.02140586]
[1756920615626,0.002,4485.6,4485.5,3.94559991]
[1756920615937,0.1112,4487.0,4485.5,3.94559991]
[1756920615938,1e-08,4486.1,4486.0,3.02115737]
[1756920616136,1e-08,4486.1,4486.0,20.13770821]
[1756920616449,1e-08,4486.1,4486.0,23.54571035]
[1756920616652,1e-08,4486.1,4486.0,23.6350163]
[1756920616853,0.4288,4487.9,4486.4,3.02095863]
[1756920617055,0.4288,4487.9,4486.4,6.77495863]
[1756920617254,0.4288,4487.9,4486.4,8.07975863]
[1756920617451,0.4288,4487.9,4486.4,9.13297762]
[1756920617856,0.1112,4488.2,4486.4,9.13297762]
[1756920618152,0.4564,4487.4,4486.4,4.94777762]
[1756920618358,0.4564,4487.1,4486.4,8.23107762]